bitfinex/quotes_SOLUSD_20260304
["timestamp","ask_amount","ask_price","bid_price","bid_amount"]
[1772614722849,39.0063413,89.729,89.669,4.45589706]
[1772614723042,4.90604048,89.72,89.669,4.45589706]
[1772614723348,4.90604048,89.7,89.662,4.45589706]
[1772614723553,4.90604048,89.71,89.662,4.45589706]
[1772614723939,39.0063413,89.729,89.664,4.45589706]
[1772614724145,4.90604048,89.72,89.668,4.45589706]
[1772614724346,4.90604048,89.71,89.668,4.45589706]
[1772614724546,4.90604048,89.72,89.67,4.45589706]
[1772614724742,0.08732382,89.724,89.67,4.45589706]
[1772614724961,4.90604048,89.73,89.68,4.45589706]
[1772614725353,4.90604048,89.74,89.682,4.45589706]
[1772614725661,4.90604048,89.74,89.669,39.03244153]
[1772614725662,4.90604048,89.74,89.69,4.45589706]
[1772614726161,0.08732382,89.734,89.679,4.45589706]
[1772614726361,4.90604048,89.74,89.689,4.45589706]
[1772614726554,4.90604048,89.74,89.691,4.45589706]
[1772614727350,4.90604048,89.73,89.691,4.45589706]
[1772614727753,0.08732382,89.791,89.696,4.45589706]
[1772614728067,11.1368496,89.792,89.687,4.82477569]
[1772614728068,0.08732382,89.738,89.687,4.82477569]
[1772614728271,0.08732382,89.738,89.69,4.45960834]
[1772614728569,11.14407718,89.734,89.692,4.45960834]
[1772614728745,11.14407718,89.734,89.669,3.69383402]
[1772614728746,4.90604048,89.72,89.693,7.77985359]
[1772614728951,4.90604048,89.72,89.681,4.45960834]
[1772614729566,11.14407718,89.734,89.661,4.45960834]
[1772614729567,4.90604048,89.71,89.661,4.45960834]
[1772614729766,4.90604048,89.71,89.664,4.45960834]
[1772614730067,4.90604048,89.71,89.67,4.45960834]
[1772614730568,4.90604048,89.71,89.672,4.45960834]
[1772614730569,39.0150375,89.709,89.672,4.45960834]
[1772614730970,11.14715357,89.709,89.672,4.45960834]
[1772614732655,11.14715357,89.709,89.673,11.15162869]
[1772614732861,11.14715357,89.709,89.674,4.45960834]
[1772614733967,39.0150375,89.709,89.674,4.45960834]
[1772614735061,4.90604048,89.7,89.661,4.45960834]
[1772614735658,39.0150375,89.709,89.661,4.45960834]
[1772614736170,39.0150375,89.709,89.66,0.2]
[1772614736171,4.90604048,89.7,89.662,4.45960834]
[1772614736462,4.90604048,89.7,89.66,0.2]
[1772614736668,4.90604048,89.7,89.66,4.65960834]
[1772614736873,39.01938705,89.699,89.66,4.65960834]
[1772614738073,39.01938705,89.699,89.662,4.45960834]
[1772614739565,39.01938705,89.699,89.621,11.1580991]
[1772614739566,4.17588047,89.698,89.621,11.1580991]
[1772614739756,4.17588047,89.698,89.622,4.82477569]
[1772614740075,4.90604048,89.69,89.628,0.28432314]
[1772614740275,4.90604048,89.68,89.628,0.28432314]
[1772614740569,4.90604048,89.68,89.627,4.82477569]
[1772614740570,4.17588047,89.669,89.627,4.82477569]
[1772614741063,4.17588047,89.669,89.622,4.82477569]
[1772614741264,4.17588047,89.682,89.622,4.82477569]
[1772614741468,4.90604048,89.68,89.626,4.82477569]
[1772614741660,4.90604048,89.67,89.629,4.45960834]
[1772614741858,9.08192095,89.68,89.629,4.45960834]
[1772614742260,4.90604048,89.67,89.631,4.45960834]
[1772614742757,4.17588047,89.678,89.621,4.45960834]
[1772614742978,4.90604048,89.66,89.621,4.45960834]
[1772614743179,4.90604048,89.64,89.601,11.16057366]
[1772614743375,4.17588047,89.639,89.606,11.15996696]
[1772614743558,4.90604048,89.65,89.606,4.45960834]
[1772614743757,4.90604048,89.64,89.606,4.45960834]
[1772614744058,4.17588047,89.67,89.611,4.45960834]
[1772614744263,44.57331,89.74,89.629,4.45960834]
[1772614744264,4.90604048,89.68,89.629,4.45960834]
[1772614744458,11.14951499,89.69,89.638,5.10909883]
[1772614744660,11.14951499,89.69,89.649,4.45960834]
[1772614745569,11.14897436,89.695,89.649,4.45960834]
[1772614745769,39.01112373,89.718,89.659,4.45960834]
[1772614746164,27.86189015,89.729,89.669,4.45960834]
[1772614746378,32.03777062,89.729,89.669,4.45960834]
[1772614746680,4.90604048,89.72,89.669,4.45960834]
[1772614746862,4.17588047,89.728,89.669,4.45960834]
[1772614747067,9.08192095,89.72,89.669,4.45960834]
[1772614747378,4.90604048,89.71,89.669,4.45960834]
[1772614747982,4.17588047,89.709,89.669,4.45960834]
[1772614748482,4.08505023,89.752,89.671,4.44975365]
[1772614748667,4.08505023,89.752,89.67,11.15200178]
[1772614748668,4.08505023,89.729,89.674,4.44975365]
[1772614748870,4.08505023,89.719,89.674,4.44975365]
[1772614749064,4.90604048,89.71,89.674,4.44975365]
[1772614749277,4.08505023,89.709,89.663,4.44975365]
[1772614749479,4.90604048,89.72,89.669,4.44975365]
[1772614749783,4.08505023,89.721,89.669,4.44975365]
[1772614749986,4.08505023,89.721,89.651,39.04027841]
[1772614749987,4.08505023,89.729,89.679,4.44975365]
[1772614750294,11.14479315,89.728,89.681,4.44975365]
[1772614750865,11.14342704,89.739,89.689,4.44975365]
[1772614751065,11.14342704,89.739,89.68,43.85242956]
[1772614751066,4.90604048,89.76,89.7,4.82477569]
[1772614751281,4.08505023,89.763,89.709,4.44975365]
[1772614751476,11.14094408,89.759,89.709,4.44975365]
[1772614751868,4.90604048,89.77,89.709,4.44975365]
[1772614752080,38.98896054,89.769,89.709,4.44975365]
[1772614752383,4.90604048,89.76,89.711,4.44975365]
[1772614752770,8.99109071,89.75,89.702,4.44975365]
[1772614752971,4.90604048,89.72,89.686,4.44975365]
[1772614753282,4.90604048,89.76,89.686,4.44975365]
[1772614753283,0.28432314,89.759,89.686,4.44975365]
[1772614753480,8.99109071,89.72,89.679,11.15078671]
[1772614753678,8.99109071,89.72,89.68,4.44975365]
[1772614754485,11.14591112,89.719,89.682,4.44975365]
[1772614754696,39.01068892,89.719,89.667,4.44975365]
[1772614755064,8.99109071,89.71,89.667,4.44975365]
[1772614755269,11.14591112,89.719,89.667,4.44975365]
[1772614755782,39.01068892,89.719,89.667,4.44975365]
[1772614756287,4.90604048,89.71,89.667,4.44975365]
[1772614756476,39.0150375,89.709,89.667,4.44975365]
[1772614756889,4.91007029,89.7,89.667,4.44975365]
[1772614757072,11.14715357,89.709,89.669,4.44975365]
[1772614757578,39.0150375,89.709,89.669,4.44975365]
[1772614758686,39.0150375,89.709,89.67,11.15200178]
[1772614758875,39.0150375,89.709,89.67,15.27096595]
[1772614759275,4.91007029,89.7,89.656,4.11896417]
[1772614759477,4.30433607,89.708,89.656,4.11896417]
[1772614759686,4.91007029,89.7,89.656,4.11896417]
[1772614760895,39.01938705,89.699,89.658,4.11896417]
[1772614761282,11.14782991,89.704,89.658,4.11896417]
[1772614761483,4.91007029,89.7,89.658,4.11896417]
[1772614761876,4.23109927,89.699,89.658,4.11896417]
[1772614762078,4.91007029,89.69,89.645,4.10884626]
[1772614762388,4.23109927,89.699,89.645,4.10884626]
[1772614762590,11.14782991,89.704,89.645,4.10884626]
[1772614762787,4.91007029,89.7,89.653,11.15411642]
[1772614762998,4.91007029,89.7,89.654,4.10884626]
[1772614763578,4.23109927,89.679,89.644,8.79436916]
[1772614763795,39.01547241,89.708,89.637,4.10884626]
[1772614763796,4.23109927,89.707,89.637,4.10884626]
[1772614764096,9.14116956,89.69,89.637,4.10884626]
[1772614764278,4.23109927,89.689,89.637,4.10884626]
[1772614764675,4.23109927,89.689,89.639,4.10884626]
[1772614764893,4.23109927,89.687,89.639,4.10884626]
[1772614765094,4.91007029,89.68,89.639,4.10884626]
[1772614765399,4.23109927,89.687,89.641,4.10884626]
[1772614765694,4.23109927,89.679,89.633,11.15658296]
[1772614765873,11.14976362,89.688,89.637,8.79436916]
[1772614766073,11.14976362,89.688,89.638,8.79436916]
[1772614766277,11.14976362,89.688,89.645,4.10884626]
[1772614766876,27.87440906,89.688,89.646,11.15498739]
[1772614767180,11.14914207,89.693,89.647,4.10884626]
[1772614767574,4.23109927,89.719,89.663,4.10884626]
[1772614767793,4.91007029,89.7,89.665,4.10884626]
[1772614768370,4.23109927,89.709,89.665,4.10884626]
[1772614768973,4.91007029,89.69,89.654,4.10884626]
[1772614769292,11.14727783,89.708,89.625,16.5448452]
[1772614769293,4.91007029,89.68,89.643,15.26417075]
[1772614769493,4.91007029,89.69,89.645,4.10884626]
[1772614769679,4.91007029,89.7,89.645,4.10884626]
[1772614769877,39.01547241,89.708,89.655,4.10884626]
[1772614770406,44.54626567,89.795,89.665,4.10884626]
[1772614770407,11.14591112,89.719,89.665,4.10884626]
[1772614770906,4.23109927,89.718,89.665,4.10884626]
[1772614771105,11.14615959,89.717,89.666,11.15249927]
[1772614771286,11.14615959,89.717,89.667,4.10884626]
[1772614771485,39.01155856,89.717,89.667,4.10884626]
[1772614771894,11.14615959,89.717,89.667,4.10884626]
[1772614772102,39.01155856,89.717,89.667,4.10884626]
[1772614772497,4.23109927,89.709,89.667,4.10884626]
[1772614772697,4.91007029,89.71,89.667,4.10884626]
[1772614773084,11.14715357,89.709,89.668,11.15225052]
[1772614773290,11.14715357,89.709,89.669,4.10884626]
[1772614774682,39.0150375,89.709,89.669,4.10884626]
[1772614775084,39.0150375,89.709,89.67,11.15200178]
[1772614775284,39.0150375,89.709,89.671,4.10884626]
[1772614775494,11.14715357,89.709,89.671,4.10884626]
[1772614776289,4.23109927,89.708,89.671,4.10884626]
[1772614776497,11.14715357,89.709,89.671,4.10884626]
[1772614776809,9.14116956,89.72,89.671,4.10884626]
[1772614777205,9.14116956,89.72,89.67,11.15200178]
[1772614777206,39.01068892,89.719,89.673,4.10884626]
[1772614777510,4.23109927,89.718,89.673,4.10884626]
[1772614778116,4.91007029,89.71,89.673,4.10884626]
[1772614778293,4.23109927,89.718,89.673,4.10884626]
[1772614779518,39.01155856,89.717,89.675,4.10884626]
[1772614779710,11.14615959,89.717,89.675,4.10884626]
[1772614780210,4.91007029,89.73,89.678,4.10884626]
[1772614781409,4.91007029,89.72,89.68,4.10884626]
[1772614781813,4.23109927,89.728,89.68,4.10884626]
[1772614782021,4.91007029,89.72,89.68,4.10884626]
[1772614782216,4.23109927,89.709,89.67,4.10884626]
[1772614782812,4.23109927,89.719,89.67,4.10884626]
[1772614783297,11.14603535,89.718,89.672,4.10884626]
[1772614784099,11.14479315,89.728,89.672,4.10884626]
[1772614784308,4.23109927,89.727,89.672,4.10884626]
[1772614784514,4.23109927,89.727,89.671,39.03157095]
[1772614784515,11.14355122,89.738,89.677,4.10884626]
[1772614784998,4.23109927,89.737,89.677,4.10884626]
[1772614785198,4.23109927,89.729,89.677,4.10884626]
[1772614785523,4.23109927,89.717,89.67,4.10884626]
[1772614785697,4.23109927,89.699,89.662,11.15296646]
[1772614785903,39.01112373,89.718,89.663,4.10884626]
[1772614785904,9.14116956,89.71,89.663,4.10884626]
[1772614786723,4.23109927,89.709,89.663,4.10884626]
[1772614787099,4.91007029,89.69,89.657,11.15357376]
[1772614787299,94.7413005,89.718,89.621,4.10884626]
[1772614787300,4.23109927,89.668,89.621,4.10884626]
[1772614787518,4.91007029,89.66,89.621,4.10884626]
[1772614787714,4.23109927,89.668,89.621,4.10884626]
[1772614787914,4.91007029,89.66,89.621,4.10884626]
[1772614788626,4.27879298,89.649,89.597,4.44001279]
[1772614788826,4.27879298,89.649,89.601,4.44001279]
[1772614789011,9.18886327,89.66,89.601,4.44001279]
[1772614789213,4.27879298,89.659,89.601,4.44001279]
[1772614789517,4.27879298,89.659,89.603,4.44001279]
[1772614789518,11.15403815,89.654,89.603,4.44001279]
[1772614790022,4.91007029,89.66,89.609,4.44001279]
[1772614790407,4.27879298,89.659,89.609,4.44001279]
[1772614790719,4.91007029,89.65,89.609,4.44001279]
[1772614791424,11.15349438,89.658,89.611,4.44001279]
[1772614791624,11.15212615,89.669,89.611,4.44001279]
[1772614792819,11.15212615,89.669,89.613,4.44001279]
[1772614793017,9.18886327,89.67,89.613,4.44001279]
[1772614793018,11.15152222,89.674,89.619,4.44001279]
[1772614793411,11.15152222,89.674,89.616,3.69383402]
[1772614793412,11.15152222,89.674,89.62,5.10909883]
[1772614793633,11.15152222,89.674,89.629,4.44001279]
[1772614794313,48.26792262,89.739,89.615,3.69383402]
[1772614794314,4.27879298,89.689,89.639,4.44001279]
[1772614794919,15.4285566,89.688,89.641,4.44001279]
[1772614795120,4.27879298,89.687,89.641,4.44001279]
[1772614795516,11.14976362,89.688,89.641,4.44001279]
[1772614795735,11.14910471,89.694,89.641,4.44001279]
[1772614796230,27.86770463,89.71,89.64,39.04506915]
[1772614796231,4.27879298,89.708,89.649,4.44001279]
[1772614797227,11.14783824,89.704,89.651,4.44001279]
[1772614797424,4.91007029,89.7,89.651,4.44001279]
[1772614797730,55.72027055,89.734,89.659,4.44001279]
[1772614797731,4.27879298,89.717,89.659,4.44001279]
[1772614797918,4.91007029,89.71,89.659,4.44001279]
[1772614798117,4.27879298,89.717,89.659,4.44001279]
[1772614798514,4.27879298,89.717,89.659,3.69383402]
[1772614798716,11.14545394,89.723,89.669,4.44001279]
[1772614799216,11.14545394,89.723,89.671,4.44001279]
[1772614799746,11.14342704,89.739,89.685,4.44001279]
[1772614799916,11.14342704,89.739,89.689,4.44001279]
[1772614800315,4.27879298,89.738,89.689,4.44001279]
[1772614800523,11.14342704,89.739,89.682,4.44001279]
[1772614800727,11.14342704,89.739,89.686,4.44001279]
[1772614800922,11.14342704,89.739,89.688,4.44001279]
[1772614801211,11.14342704,89.739,89.687,0.28432314]
[1772614801212,4.27879298,89.794,89.715,4.44001279]
[1772614801429,11.13492154,89.808,89.748,4.72433593]
[1772614801732,11.13492154,89.808,89.742,0.28432314]
[1772614801733,11.13115242,89.838,89.777,4.44001279]
[1772614801923,11.13115242,89.838,89.779,4.44001279]
[1772614801924,15.4099454,89.838,89.779,4.44001279]
[1772614802230,15.40917204,89.845,89.789,4.44001279]
[1772614802438,4.27879298,89.859,89.789,4.44001279]
[1772614802627,4.27879298,89.799,89.713,0.28432314]
[1772614802829,4.27879298,89.769,89.704,11.49048306]
[1772614803131,4.90692304,89.82,89.71,4.82477569]
[1772614803132,11.13858629,89.778,89.71,4.82477569]
[1772614803336,11.13858629,89.778,89.72,15.5]
[1772614803337,4.90692304,89.77,89.72,15.5]
[1772614803514,4.27879298,89.759,89.72,15.5]
[1772614803833,4.27879298,89.771,89.72,15.5]
[1772614804136,38.98505201,89.778,89.72,15.5]
[1772614804522,38.98505201,89.778,89.721,4.44001279]
[1772614804523,11.13858629,89.778,89.721,4.44001279]
[1772614805136,11.1398271,89.768,89.723,4.44001279]
[1772614805517,11.13846222,89.779,89.723,4.44001279]
[1772614805713,38.94600969,89.868,89.726,4.72433593]
[1772614805945,38.94600969,89.868,89.786,4.44001279]
[1772614805946,4.27879298,89.868,89.786,4.44001279]
[1772614806116,4.27879298,89.867,89.805,4.44001279]
[1772614806425,4.27879298,89.859,89.808,4.44001279]
[1772614806821,38.94600969,89.868,89.767,10.03121419]
[1772614806822,4.27879298,89.839,89.79,4.44001279]
[1772614807026,4.27879298,89.829,89.778,4.58217436]
[1772614807229,4.27879298,89.827,89.778,4.44001279]
[1772614807427,4.27879298,89.819,89.779,11.13846222]
[1772614807714,11.1322624,89.829,89.78,4.44001279]
[1772614808433,4.90692304,89.82,89.78,4.44001279]
[1772614808620,4.27879298,89.828,89.78,4.44001279]
[1772614809337,11.13251026,89.827,89.782,4.44001279]
[1772614809540,4.90692304,89.84,89.782,4.44001279]
[1772614809729,15.4095256,89.842,89.782,4.44001279]
[1772614810256,4.27879298,89.841,89.782,4.44001279]
[1772614810424,4.27879298,89.839,89.782,4.44001279]
[1772614810628,4.27879298,89.829,89.782,4.44001279]
[1772614810837,38.95736159,89.842,89.755,27.85344565]
[1772614810838,4.27879298,89.819,89.759,4.44001279]
[1772614811242,4.27879298,89.817,89.761,4.44001279]
[1772614811641,4.27879298,89.838,89.766,4.44001279]
[1772614811943,4.27879298,89.838,89.768,4.44001279]
[1772614812140,4.27879298,89.838,89.782,4.72433593]
[1772614812332,4.27879298,89.858,89.784,4.72433593]
[1772614812533,4.90692304,89.85,89.784,4.72433593]
[1772614812730,4.27879298,89.858,89.784,4.72433593]
[1772614813740,4.90692304,89.86,89.789,4.44001279]
[1772614813741,4.27879298,89.856,89.789,4.44001279]
[1772614814148,11.1271574,89.871,89.808,0.14216157]
[1772614814358,4.27879298,89.878,89.818,4.44001279]
[1772614815135,11.12498629,89.888,89.824,4.44001279]
[1772614815338,9.18571602,89.87,89.828,4.44001279]
[1772614815546,4.27879298,89.859,89.815,4.44001279]
[1772614815741,4.27879298,89.874,89.82,4.44001279]
[1772614816053,4.27879298,89.872,89.82,4.44001279]
[1772614816636,4.27879298,89.859,89.816,11.13387369]
[1772614816829,4.27879298,89.839,89.782,4.44001279]
[1772614817032,4.27879298,89.829,89.782,4.44001279]
[1772614817527,4.27879298,89.844,89.782,4.44001279]
[1772614817834,4.27879298,89.867,89.801,4.44001279]
[1772614818034,55.62083934,89.895,89.801,4.44001279]
[1772614818035,11.12606949,89.879,89.813,4.72433593]
[1772614818340,11.12606949,89.879,89.829,4.19824585]
[1772614818341,4.09008633,89.878,89.829,4.19824585]
[1772614818848,4.09008633,89.913,89.839,4.19824585]
[1772614819047,26.4113813,90.0,89.818,4.19824585]
[1772614819048,4.8913813,89.88,89.818,4.19824585]
[1772614819250,4.09008633,89.879,89.818,4.19824585]
[1772614819721,11.12619328,89.878,89.82,4.19824585]
[1772614820723,4.09008633,89.892,89.828,4.19824585]
[1772614820920,4.09008633,89.892,89.835,0.28432314]
[1772614821126,4.09008633,89.892,89.833,0.28432314]
[1772614821127,15.2129864,89.905,89.838,4.19824585]
[1772614821343,11.12290007,89.905,89.848,4.19824585]
[1772614821850,15.21194561,89.914,89.86,4.28687759]
[1772614822051,4.29886865,89.913,89.86,4.28687759]
[1772614822244,4.29886865,89.909,89.859,11.12854583]
[1772614822449,4.29886865,89.879,89.835,4.28687759]
[1772614822835,4.29886865,89.859,89.807,4.28687759]
[1772614823143,4.29886865,89.859,89.81,4.28687759]
[1772614823351,4.29886865,89.869,89.81,4.28687759]
[1772614823544,4.29886865,89.859,89.81,4.28687759]
[1772614823741,3.69383402,89.93,89.725,44.58030764]
[1772614823742,4.29886865,89.909,89.792,4.28687759]
[1772614824048,4.29886865,89.839,89.792,4.28687759]
[1772614824640,4.29886865,89.849,89.792,4.28687759]
[1772614824841,4.8913813,89.88,89.791,38.97940772]
[1772614824842,4.29886865,89.876,89.806,4.28687759]
[1772614825045,4.29886865,89.849,89.806,4.28687759]
[1772614825261,27.80898563,89.899,89.808,4.28687759]
[1772614825262,4.29886865,89.869,89.808,4.28687759]
[1772614825566,4.29886865,89.869,89.807,0.28432314]
[1772614825567,4.29886865,89.883,89.819,4.28687759]
[1772614825732,4.29886865,89.869,89.82,11.13337786]
[1772614826056,4.29886865,89.849,89.799,15.42285905]
[1772614826352,4.29886865,89.849,89.8,4.28687759]
[1772614826938,94.57264291,89.878,89.799,38.97593513]
[1772614826939,4.29886865,89.839,89.799,11.13598146]
[1772614827453,4.29886865,89.829,89.788,15.42413099]
[1772614827851,11.13238633,89.828,89.788,15.42413099]
[1772614828058,4.29886865,89.839,89.789,4.28687759]
[1772614828265,4.29886865,89.829,89.789,15.42409929]
[1772614828564,4.29886865,89.819,89.789,11.1372217]
[1772614829140,4.8913813,89.83,89.79,4.28687759]
[1772614829338,4.8913813,89.82,89.784,11.13778616]
[1772614829538,4.29886865,89.829,89.779,15.42533981]
[1772614829739,4.29886865,89.787,89.724,4.28687759]
[1772614830055,4.29886865,89.779,89.737,4.28687759]
[1772614830361,4.29886865,89.779,89.739,27.85851098]
[1772614830565,4.29886865,89.779,89.737,4.28687759]
[1772614831258,4.29886865,89.769,89.702,4.28687759]
[1772614831462,4.8913813,89.74,89.701,11.14814773]
[1772614831676,4.8913813,89.74,89.689,4.28687759]
[1772614831677,4.29886865,89.787,89.7,11.34815182]
[1772614831970,4.29886865,89.784,89.701,4.28687759]
[1772614832170,4.29886865,89.759,89.701,4.28687759]
[1772614832338,4.29886865,89.771,89.713,4.28687759]
[1772614832541,4.29886865,89.785,89.719,4.28687759]
[1772614832742,11.13684497,89.793,89.729,4.28687759]
[1772614833141,4.8913813,89.81,89.739,4.28687759]
[1772614833142,27.83680518,89.81,89.739,4.28687759]
[1772614833352,4.29886865,89.804,89.749,4.28687759]
[1772614833846,15.43270587,89.817,89.759,4.28687759]
[1772614834044,4.29886865,89.816,89.751,4.28687759]
[1772614834344,4.29886865,89.816,89.759,4.28687759]
[1772614834976,4.29886865,89.809,89.759,4.28687759]
[1772614835146,4.29886865,89.809,89.683,11.49048306]
[1772614835147,4.29886865,89.809,89.737,27.8590102]
[1772614835346,4.29886865,89.769,89.721,4.28687759]
[1772614835982,4.29886865,89.767,89.71,4.28687759]
[1772614836469,4.29886865,89.759,89.71,4.28687759]
[1772614836662,38.98939487,89.768,89.71,4.28687759]
[1772614836663,11.1398271,89.768,89.71,4.28687759]
[1772614836871,4.29886865,89.769,89.713,4.28687759]
[1772614837461,4.29886865,89.769,89.719,4.28687759]
[1772614837876,4.29886865,89.767,89.72,11.14578689]
[1772614838076,4.29886865,89.759,89.72,11.14578689]
[1772614838381,38.98939487,89.768,89.712,11.14669863]
[1772614838382,4.29886865,89.749,89.712,11.14669863]
[1772614838581,4.29886865,89.739,89.704,11.1476807]
[1772614838785,4.29886865,89.739,89.701,11.14814773]
[1772614838970,4.29886865,89.739,89.7,0.2]
[1772614839279,38.98939487,89.768,89.7,0.2]
[1772614839280,4.29886865,89.753,89.702,4.28687759]
[1772614839675,4.8913813,89.75,89.702,4.28687759]
[1772614839978,11.14181299,89.752,89.704,4.28687759]
[1772614840281,4.29886865,89.749,89.704,4.28687759]
[1772614840963,4.29886865,89.739,89.7,0.2]
[1772614841174,4.29886865,89.729,89.7,0.2]
[1772614841577,4.29886865,89.719,89.7,0.2]
[1772614841888,4.29886865,89.719,89.63,11.50163303]
[1772614841889,4.29886865,89.717,89.669,39.03244153]
[1772614842185,4.29886865,89.717,89.67,4.28687759]
[1772614842680,11.14603535,89.718,89.67,4.28687759]
[1772614842878,15.444904,89.718,89.67,4.28687759]
[1772614843268,4.29886865,89.699,89.658,11.15349438]
[1772614843778,4.29886865,89.709,89.659,4.28687759]
[1772614844080,11.14727783,89.708,89.661,4.28687759]
[1772614844483,4.29886865,89.699,89.648,11.15473853]
[1772614844794,39.01547241,89.708,89.635,4.28687759]
[1772614844795,4.29886865,89.689,89.635,4.28687759]
[1772614844964,4.29886865,89.679,89.635,4.28687759]
[1772614845461,4.29886865,89.679,89.614,4.28687759]
[1772614845882,11.15349438,89.658,89.616,4.28687759]
[1772614847463,15.45111917,89.668,89.616,4.28687759]
[1772614847669,9.23465479,89.853,89.615,39.0559616]
[1772614847670,11.14727783,89.708,89.623,4.57120073]
[1772614847865,11.14727783,89.708,89.646,4.28687759]
[1772614847866,15.44614648,89.708,89.646,4.28687759]
[1772614848097,4.29886865,89.708,89.651,5.10909883]
[1772614848269,11.14713063,89.71,89.658,4.13301534]
[1772614848786,4.08080836,89.709,89.658,4.13301534]
[1772614849687,4.08080836,89.721,89.658,4.13301534]
[1772614849893,4.08080836,89.733,89.669,3.69383402]
[1772614850185,4.08080836,89.733,89.673,4.41733848]
[1772614850590,4.08080836,89.719,89.661,4.13301534]
[1772614851173,4.08080836,89.709,89.661,4.13301534]
[1772614851884,4.08080836,89.709,89.659,39.03679496]
[1772614851885,4.08080836,89.709,89.648,4.13301534]
[1772614852086,11.14702931,89.71,89.651,4.13301534]
[1772614852269,4.08080836,89.709,89.651,4.13301534]
[1772614852471,4.08080836,89.699,89.647,39.04202036]
[1772614852675,39.0146026,89.71,89.647,39.04202036]
[1772614852676,4.08080836,89.689,89.647,39.04202036]
[1772614853196,4.08080836,89.689,89.647,11.15486296]
[1772614853697,4.8913813,89.68,89.647,11.15486296]
[1772614853879,44.56898761,89.749,89.64,39.04506915]
[1772614853880,4.08080836,89.687,89.64,39.04506915]
[1772614854202,4.08080836,89.659,89.615,11.15884617]
[1772614854502,4.08080836,89.669,89.616,4.13301534]
[1772614854872,4.08080836,89.669,89.619,4.13301534]
[1772614855286,4.08080836,89.669,89.618,3.69383402]
[1772614855479,4.08080836,89.687,89.616,4.13301534]
[1772614855694,4.08080836,89.659,89.616,4.13301534]
[1772614855993,4.08080836,89.657,89.617,11.15859714]
[1772614856590,4.08080836,89.657,89.616,4.13301534]
[1772614856794,4.8913813,89.65,89.616,4.13301534]
[1772614856975,8.97218966,89.65,89.611,11.15926067]
[1772614857177,4.08080836,89.639,89.605,11.16003362]
[1772614857989,15.23679131,89.638,89.597,14.854922]
[1772614858198,15.23679131,89.638,89.597,46.89065729]
[1772614858499,11.15530297,89.644,89.598,4.13301534]
[1772614858699,15.23611133,89.644,89.598,4.13301534]
[1772614859603,4.08080836,89.639,89.598,4.13301534]
[1772614859795,4.08080836,89.629,89.592,11.16166831]
[1772614860108,11.15722765,89.628,89.592,11.16166831]
[1772614860416,4.08080836,89.619,89.575,11.16381703]
[1772614860618,4.08080836,89.619,89.576,4.13301534]
[1772614860798,8.97218966,89.61,89.575,11.16381703]
[1772614860998,4.08080836,89.609,89.575,11.16381703]
[1772614861201,16.04711534,89.64,89.576,4.13301534]
[1772614861399,4.8913813,89.63,89.576,4.13301534]
[1772614861709,11.15573404,89.64,89.576,4.13301534]
[1772614861710,4.8913813,89.62,89.576,4.13301534]
[1772614861889,4.8913813,89.62,89.571,4.13301534]
[1772614862093,11.15834811,89.619,89.574,4.13301534]
[1772614862290,4.8913813,89.59,89.57,0.2]
[1772614862494,4.8913813,89.61,89.57,4.33301534]
[1772614863308,3.50279895,89.609,89.57,0.2]
[1772614863515,4.8913813,89.6,89.57,0.2]
[1772614863812,39.0542184,89.619,89.544,4.13301534]
[1772614864016,4.8913813,89.6,89.544,4.13301534]
[1772614864201,11.15822361,89.62,89.549,4.13301534]
[1772614864407,4.8913813,89.61,89.549,4.13301534]
[1772614864606,3.25346329,89.618,89.549,4.13301534]
[1772614864806,4.8913813,89.61,89.549,4.13301534]
[1772614865197,3.25346329,89.618,89.549,4.13301534]
[1772614865511,11.15822361,89.62,89.556,4.41733848]
[1772614865711,16.04960491,89.62,89.556,4.41733848]
[1772614866213,16.04960491,89.62,89.561,4.13301534]
[1772614866404,16.04960491,89.62,89.56,3.69383402]
[1772614866405,11.15751794,89.626,89.566,4.41733848]
[1772614866800,55.76707052,89.659,89.566,4.41733848]
[1772614866801,3.25346329,89.66,89.571,4.13301534]
[1772614867112,3.25346329,89.675,89.606,4.13301534]
[1772614867416,3.25346329,89.675,89.608,4.13301534]
[1772614867596,3.25346329,89.669,89.608,4.13301534]
[1772614867803,3.25346329,89.659,89.608,4.13301534]
[1772614868300,11.15349438,89.658,89.609,11.15959334]
[1772614868501,11.15349438,89.658,89.61,4.13301534]
[1772614868696,55.74198151,89.699,89.609,39.0585767]
[1772614868697,11.15023014,89.685,89.624,4.27517691]
[1772614868918,11.15023014,89.685,89.614,3.69383402]
[1772614868919,11.15023014,89.685,89.628,4.13301534]
[1772614869103,11.14864488,89.697,89.639,4.13301534]
[1772614869302,39.02025708,89.697,89.639,4.13301534]
[1772614869509,42.27372037,89.697,89.639,4.13301534]
[1772614869713,3.25346329,89.696,89.639,4.13301534]
[1772614869916,4.8913813,89.69,89.639,4.13301534]
[1772614870117,3.25346329,89.679,89.613,4.13301534]
[1772614870312,3.25346329,89.679,89.612,3.69383402]
[1772614870313,11.15212615,89.669,89.621,4.13301534]
[1772614870510,3.25346329,89.668,89.621,4.13301534]
[1772614871610,42.28677542,89.667,89.621,4.13301534]
[1772614871813,3.25346329,89.649,89.595,4.13301534]
[1772614872202,4.8913813,89.66,89.595,4.13301534]
[1772614872402,4.8913813,89.66,89.599,4.13301534]